Cogmind - Beta 13 @@@ ROGUE MODE // 2024.05.16 @ 21:42:08 Player: SaltHuntress Result: Destroyed by G-34 Mercenary with Small Laser Performance ------------- Evolutions (1) 500 Regions Visited (2) 400 Robots Destroyed (12) 60 Value Destroyed (446) 446 Prototype IDs (0) 0 Alien Tech Used (0) 0 Bonus (0) 0 TOTAL SCORE: 1406 Bonus ------- None Cogmind --------- Core Integrity 0/400 Matter 300/300 Energy 100/100 System Corruption 0% Temperature Cool (6) Movement Core (200) Ox3 Location -9/Materials Parts ------- > --- POWER (1) -------- (None) > --- PROPULSION (3) --- (None) > --- UTILITY (3) ------ Medium Storage Unit > --- WEAPON (2) ------- (None) > --- INVENTORY (10) --- Light Ion Engine Light Treads Aluminum Leg Aluminum Leg Aluminum Leg Small Storage Unit Sensor Array Signal Interpreter Improved Targeting Computer Grenade Launcher Peak State ------------ > --- POWER ------------ Light Nuclear Core > --- PROPULSION ------- Aluminum Leg Aluminum Leg Aluminum Leg > --- UTILITY ---------- Improved Heat Sink Medium Storage Unit Medium Armor Plating > --- WEAPON ----------- EM Shotgun EM Shotgun > --- INVENTORY -------- Light Ion Engine Light Treads Aluminum Leg Aluminum Leg Aluminum Leg Small Storage Unit Sensor Array Signal Interpreter Improved Targeting Computer Grenade Launcher [Rating: 17] Favorites ----------- Power Ion Engine Engine Ion Engine Power Core Light Nuclear Core Propulsion Aluminum Leg Treads Light Treads Leg Aluminum Leg Wheel Compact Wheel Utility Medium Storage Unit Device Terrain Scanner Storage Medium Storage Unit Protection Medium Armor Plating Weapon Light Assault Rifle Energy Gun EM Shotgun Ballistic Gun Light Assault Rifle Build | -11 -10 -9 ------- Run | Yrd Mat Mat Slots Evolved 2 | . . 2 Power . | . . . Propulsion 1 | . . 1 Utility 1 | . . 1 Weapon . | . . . Parts Attached 24 | 5 8 11 Power 4 | . 1 3 Engine 3 | . 1 2 Core 1 | . . 1 Reactor . | . . . Propulsion 9 | 2 4 3 Treads 2 | . 2 . Leg 5 | . 2 3 Wheel 2 | 2 . . Hover . | . . . Flight . | . . . Utility 5 | 1 2 2 Device 2 | . 1 1 Storage 2 | 1 1 . Processor . | . . . Hackware . | . . . Protection 1 | . . 1 Artifact . | . . . Weapon 6 | 2 1 3 Energy Gun 3 | . . 3 Energy Cannon . | . . . Ballistic Gun 3 | 2 1 . Ballistic Cannon . | . . . Launcher . | . . . Special Weapon . | . . . Impact Weapon . | . . . Slashing Weapon . | . . . Piercing Weapon . | . . . Special Melee Weapon . | . . . Unidentified Prototypes . | . . . Parts Lost 10 | . . 10 Power 2 | . . 2 Propulsion 3 | . . 3 Utility 2 | . . 2 Weapon 3 | . . 3 Highest Loss Streak 8 | . . 8 To Critical Strikes . | . . . Average Slot Usage (%) 93 | . 95 91 Engine 8 | . 13 5 Core 3 | . . 5 Treads 1 | . 4 . Leg 26 | . 17 31 Wheel 1 | . 5 . Device 13 | . 12 13 Storage 12 | . 14 11 Protection 3 | . . 5 Energy Gun 8 | . . 13 Ballistic Gun 13 | . 26 6 Naked Turns . | . . . Heaviest Build 29 | 8 19 29 Greatest Support 40 | 26 40 30 Greatest Overweight (x) . | . . . Average Overweight (x) . | . . . Largest Inventory Capacity 10 | 8 10 10 Average Capacity 9 | 6 8 10 Most Carried 10 | 4 7 10 Average Carried 7 | 2 6 8 Final Capacity 10 | 8 10 10 Final Carried 10 | 4 7 10 Class Distribution -------------------- 53% | Mutant 46% | Scavenger-Mutant Dominant Class ---------------- Mutant | -10/Materials Scavenger-Mutant | -9/Materials Resources | -11 -10 -9 ----------- Run | Yrd Mat Mat Matter Collected 542 | 221 79 242 Remotely . | . . . Salvage Created 519 | . 79 440 Parts 31 | . 1 30 Haulers Intercepted . | . . . Recyclers Shooed . | . . . Parts Field Recycled . | . . . Retrieved Matter . | . . . Parts Self-Destructed . | . . . Prevented . | . . . Kills | -11 -10 -9 ------- Run | Yrd Mat Mat Combat Hostiles Destroyed 10 | . 2 8 Guns 10 | . 2 8 Classes Destroyed 3 | . 1 2 Watcher 2 | . . 2 Grunt 8 | . 2 6 Sentry 2 | . . 2 Best Kill Streak 3 | . 2 3 Combat Bots Only 2 | . 2 2 Max Kills in Single Turn 1 | . 1 1 Gunslinging . | . . . Exploded . | . . . Melee . | . . . Uniques/NPCs Destroyed . | . . . Combat | -11 -10 -9 -------- Run | Yrd Mat Mat Hostile Shots Fired 185 | . 34 151 Missed 50 | . 3 47 Damage Taken 1746 | . 432 1314 Core 545 | . 144 401 Absorbed by Shields . | . . . Regen/Repaired (Parts) 61 | . 61 . Core Remaining (%) 71 | 100 42 . Volleys Fired 56 | . 15 41 Largest 2 | . 2 2 Hottest 90 | . 40 90 Shots Fired 96 | . 30 66 Gun 96 | . 30 66 Cannon . | . . . Launcher . | . . . Special . | . . . Kinetic 65 | . 30 35 Thermal 2 | . . 2 Explosive . | . . . Electromagnetic 29 | . . 29 Robot Hit Streak 15 | . 6 15 Robot Miss Streak 3 | . 2 3 Penetration Max . | . . . Secondary Targets 2 | . 1 1 Max Gunslinging Chain 1 | . 1 1 Shots Hit Robots 75 | . 21 54 Core Hits 34 | . 6 28 Critical Kills . | . . . Critical Parts Destroyed 1 | . . 1 Critical Strikes 1 | . . 1 Destroy 1 | . . 1 Melee Attacks . | . . . Impact . | . . . Slashing . | . . . Piercing . | . . . Sneak Attacks . | . . . Combat Hostiles . | . . . Follow-up Attacks . | . . . Damage Inflicted 919 | . 215 704 Guns 919 | . 215 704 Cannons . | . . . Explosions . | . . . Melee . | . . . Ramming . | . . . Kinetic 518 | . 215 303 Thermal . | . . . Explosive . | . . . Electromagnetic 401 | . . 401 Impact . | . . . Slashing . | . . . Piercing . | . . . Highest Corruption . | . . . Average Corruption . | . . . Corruption Purged . | . . . Corruption Blocked . | . . . Overload Shots . | . . . Overflow Damage . | . . . Projectiles . | . . . Explosions . | . . . Melee . | . . . Knockbacks . | . . . Impact . | . . . Kinetic . | . . . Secondary . | . . . Self-Inflicted Damage . | . . . Shots . | . . . Rammed 1 | . 1 . Targets Rammed 1 | . 1 . Kicked . | . . . Crushed . | . . . Highest Temperature 61 | . 61 34 Average Temperature 20 | . 33 8 Received Heat Transfer 960 | . 276 684 Siege Activations . | . . . Robots Corrupted . | . . . Combat Hostiles . | . . . Parts Fried . | . . . Impact Corruptions . | . . . Robots Melted . | . . . Combat Hostiles . | . . . Parts Melted . | . . . Heat Transferred . | . . . Parts Sabotaged . | . . . Parts Stolen . | . . . Parts Stripped . | . . . Power Chain Reactions . | . . . Alert | -11 -10 -9 ------- Run | Yrd Mat Mat Peak Influence 270 | . 53 270 Initial 22 | . . 22 Average 86 | . 34 126 Maximum Alert Level 1 | . . 1 Low Security (%) 92 | 100 100 86 Level 1 7 | . . 13 Level 2 . | . . . Level 3 . | . . . Level 4 . | . . . Level 5 . | . . . High Security . | . . . Max Security . | . . . Squads Dispatched 1 | . . 1 Investigation 1 | . . 1 Extermination . | . . . Reinforcement . | . . . Assault . | . . . Garrison . | . . . Intercept . | . . . Searches Triggered . | . . . Construction Impeded . | . . . Haulers Reinforced . | . . . Active Scanning Responses . | . . . Cargo Convoy Interrupts . | . . . Stealth | -11 -10 -9 --------- Run | Yrd Mat Mat Distress Signals 2 | . . 2 Communications Jammed . | . . . Distress Signals . | . . . Times Spotted 27 | . 3 24 Peak Tracking Total 10 | . 2 10 Tactical Retreats 2 | . . 2 Traps | -11 -10 -9 ------- Run | Yrd Mat Mat Traps Triggered 1 | . . 1 Indirectly . | . . . Trap Hack Attempts . | . . . Triggered . | . . . Disarmed . | . . . Reprogrammed . | . . . Reused . | . . . Traps Extracted . | . . . Installed . | . . . Triggered . | . . . Machines | -11 -10 -9 ---------- Run | Yrd Mat Mat Machines Disabled . | . . . Max in Single Turn . | . . . Machines Repaired . | . . . Machines Dismantled . | . . . Machines Sabotaged . | . . . Overloaded Fab Kills . | . . . Hacking | -11 -10 -9 --------- Run | Yrd Mat Mat Machines Accessed 6 | . 2 4 Terminals 4 | . . 4 Fabricators . | . . . Repair Stations 1 | . 1 . Recycling Units 1 | . 1 . Scanalyzers . | . . . Garrison Access . | . . . Total Hacks 12 | . 3 9 Successful 7 | . 3 4 Failed 5 | . . 5 Catastrophic 1 | . . 1 Database Lockouts . | . . . Manual 3 | . 1 2 Terminals 9 | . . 9 Fabricators . | . . . Repair Stations 2 | . 2 . Recycling Units 1 | . 1 . Scanalyzers . | . . . Garrison Access . | . . . Terminal Hacks 4 | . . 4 Emergency Access Points 1 | . . 1 Locate Traps 1 | . . 1 Reinforcement Status 1 | . . 1 Zone Layout 1 | . . 1 Fabricator Hacks . | . . . Repair Station Hacks 2 | . 2 . Scan Component 1 | . 1 . Repair 1 | . 1 . Recycling Unit Hacks . | . . . Scanalyzer . | . . . Garrison Access Hacks . | . . . Unauthorized Hacks 1 | . 1 . Terminals . | . . . Fabricators . | . . . Repair Stations . | . . . Recycling Units 1 | . 1 . Reject 1 | . 1 . Scanalyzers . | . . . Garrison Access . | . . . Data Cores Recovered . | . . . Used . | . . . Hacking Detections 4 | . 2 2 Full Trace Events . | . . . Feedback Events . | . . . Feedback Blocked . | . . . Robot Schematics Acquired . | . . . Robots Built . | . . . Authchips . | . . . Time . | . . . Total Robot Build Rating . | . . . Part Schematics Acquired . | . . . Parts Built . | . . . Authchips . | . . . Time . | . . . Total Part Build Rating . | . . . Parts Repaired 1 | . 1 . Time 26 | . 26 . Parts Recycled . | . . . Recycled Matter . | . . . Retrieved Matter . | . . . Retrieved Components . | . . . Parts Scanalyzed . | . . . Part Schematics Acquired . | . . . Parts Damaged . | . . . Bothacking | -11 -10 -9 ------------ Run | Yrd Mat Mat Used RIF Installer . | . . . Robots Hacked . | . . . Non-combat . | . . . Combat . | . . . Robot Hacks Applied . | . . . Relay Couplers Released . | . . . Fabnet Peak Effective % . | . . . Robots Rewired . | . . . Allies Hacked . | . . . Hacks Repelled . | . . . Allies | -11 -10 -9 -------- Run | Yrd Mat Mat Total Allies . | . . . Largest Group . | . . . Highest-Rated Group . | . . . Highest-Rated Ally . | . . . Total Orders . | . . . Ally Attacks . | . . . Total Damage . | . . . Kills . | . . . Allies Corrupted . | . . . Allies Melted . | . . . Intel | -11 -10 -9 ------- Run | Yrd Mat Mat Robot Analysis Total . | . . . Derelict Logs Recovered . | . . . Drone Launches . | . . . Drone Recoveries . | . . . Exploration | -11 -10 -9 ------------- Run | Yrd Mat Mat Turns Passed 917 | 58 320 539 Spaces Moved 577 | 55 207 315 Core 8 | 8 . . Treads 7 | . 7 . Legs 459 | . 144 315 Wheels 103 | 47 56 . Hover . | . . . Flight . | . . . Fastest Speed 50 | 50 90 120 Average Speed 114 | 84 113 120 Slowest Speed 160 | 100 160 120 Overloaded Moves . | . . . Propulsion Burnouts . | . . . Robots Hopped . | . . . Cave-ins Triggered . | . . . Exploration Rate (%) 25 | 3 30 42 Regions Visited 2 Branch Regions . Pre-discovered Areas . | . . . Known Exits Taken . | . . . Unknown Exits Taken 2 | 1 1 . Scrap Searched . | . . . Spaces Dug . | . . . Terrain Destroyed . | . . . Melee . | . . . Projectile . | . . . AOE . | . . . Terrain Rammed . | . . . Walls Destroyed . | . . . Machines Disabled . | . . . Actions | -11 -10 -9 --------- Run | Yrd Mat Mat Total 739 | 63 263 413 Wait 64 | . 27 37 Move 575 | 54 206 315 Hop . | . . . Pick Up 11 | 4 3 4 Fast Attach 15 | 5 5 5 Attach 4 | . 1 3 Detach . | . . . Swap 5 | . 2 3 Drop 8 | . 3 5 Fire 56 | . 15 41 Melee . | . . . Ram . | . . . Kick . | . . . Crush 1 | . 1 . Escape Stasis . | . . . Rewire . | . . . Trap . | . . . Miscellaneous . | . . . Route ------- -11/Scrapyard -10/Materials -9/Materials (discovered 1 exit: [*Min]) History --------- Turn | Location | Event 6 | -11/Scrapyard | Discovered new exit (range 16) 59 | -11/Scrapyard | Entered Materials 162 | -10/Materials | Core integrity fell below 50% 253 | -10/Materials | Repaired Lgt. Assault Rifle 319 | -10/Materials | Discovered new exit (range 4) 320 | -10/Materials | Build established: Mutant 379 | -10/Materials | Entered another Materials area 379 | -9/Materials | Evolved 2 slots: Propulsion x1, Utility x1 754 | -9/Materials | Discovered new exit (range 12) 757 | -9/Materials | Build established: Scavenger-Mutant 901 | -9/Materials | Core integrity fell below 50% 914 | -9/Materials | Core integrity fell below 20% 918 | -9/Materials | Destroyed by G-34 Mercenary with Small Laser Last Messages --------------- investigation squad. 00798_ U-05 Engineer lays Concrete. 00836_ Y-45 Defender destroyed. 00871_ EM Shotgun destroyed. 00881_ Med. Armor Plating destroyed. 00883_ Y-45 Defender misfires. 00885_ EM Shotgun destroyed. 00886_ Ion Engine destroyed. 00893_ Critical hit (Burn: +37). 00898_ K-01 Serf destroyed. 00898_ K-01 Serf collects debris. 00898_ Aluminum Leg destroyed. 00901_ Y-45 Defender IFF system glitched. 00902_ Aluminum Leg destroyed. 00904_ K-01 Serf collects debris. 00904_ Y-45 Defender IFF system glitched. 00905_ Aluminum Leg destroyed. 00907_ Y-45 Defender misfires. 00911_ Imp. Heat Sink destroyed. 00913_ Critical hit (Burn: +37). Map ----- +----------------------------------------------------+ | ??????????????????????????????????# #?? | | ????????????????? ??????????????# ### | | ????????????????? ############### | | ????????????????# | | ????????????????# | | ????????????????# | | ???????????????## | | ???????????????# ## | | ???????????????# # | | ???????????????+ # | | ???????????????# # | | ???????????"???# ##+###### | | ??????????? ??# ######### ## | | ???????????#g??# ######### ## | | ???????????# ??# + ## | | ???????????# ??# # ## | | ???????????# ### # | ## | | ???????????# Y + ## | | ???????????# ggY############## ## | | ???????????# =#????????????# ! ## | | ????????####k *%#????????????# ### | | ???????##! #????????????# ## | | ???????#! g ###??????????######### | | ???????#! +??????????????????#* | | ???????#! #????????????????#### | | ???????#! @ #????????????????# | | ???????##! g#????????????????# | | ????????#### +????????????????#""" | | ???????????# #????????????????#""" | | ???????????# g #????????????????#""" | | ???????????#+## #????????????????# | | ??????????????? #????????????????#### | | ??????????????? #????????????????#### | | ??????????????? ???????? ?? | | ??????????????? ???????? | | ??????????????? ??????? | | ??????????????? ##??????????????##### | | ??????????????? #???????????????????? | | ???????????????? #???????????????????? | | ???????????????? #???????????????????? | | ???????????????? ?????????????????????? | | ??????????????????????????????????????? | | ??????????????????????????????????????? | | ??????????????????????????????????????? | | ??????????????????????????????????????? | | ??????????????????????????????????????? | | ??????????????????????????????????????? | | ??????????????????????????????????????? | | ??????????????????????????????????????? | | ??????????????????????????????????????? | +----------------------------------------------------+ Best States ------------- Heat Dissipation 42 Energy Generation 14 Energy Capacity 250 Matter Stores 300 Matter Capacity 300 Sight Range 16 Terrain Scan Range 14 Terrain Scan Density 10 Armor Coverage 225 Evasion (%) 55 Recoil Reduction 2 Item Schematics ----------------- None Robot Schematics ------------------ None Fabricated ------------ Nothing Alien Tech Used ----------------- None Achievements -------------- None Challenges ------------ None Game ------ Seed StasisSchematicSegregator Manual? 0 Play Time 00:15:28 Cumulative 7.3 hours Start 2024.05.16 @ 21:29:06 End 2024.05.16 @ 21:42:08 Sessions 1 Manual Loads 0 Difficulty Rogue Special Mode None Game No. 7 Rogue 7 Adventurer 0 Explorer 0 Win Type - Total 0 Types 0/0/0/0/0/0/0/0/0 Lore% 5 Gallery% 10 Achievement% 10 Wizard Run 0 Options --------- Layout 1 ASCII 0 Keyboard 0 Movement Mouse Keybinds 0 Fullscreen 1 Font 32/SmallcapsGlow Map View 50x35 Zoom Use 0% Tactical HUD 1 Map Filters NONE Filters NONE Steam 1 RUN: 5c5201df-60c6-4d8a-9eb9-134bdc6ede90